{"text_format":"1","workbook":"xlsx","n_sheets":5,"sheets":["Erläuterungen Kostenaufstellung","TEMPLATE Erläuterungen","Übersicht Vorhaben","TEMPLATE Übersicht","TEMPLATE Arbeitspaket"],"not_rendered":{"charts":0,"images":0,"macros":1,"external_links":0,"defined_names":118,"comments":3,"pivot_tables":0},"unopened":[],"bounds":{"document_bytes":16777216,"sheet_cells":100000,"rows_first":2000,"rows_last":500,"rows_between":2000,"halvings":0,"cell_chars":16384,"cell_head_chars":4096},"cells_cut":0,"cells_raw":0,"read":"whole","date_system":"1900"}

{"sheet":"Erläuterungen Kostenaufstellung","index":0,"n_rows":19,"n_cols":2,"rows_kept":19,"cut":false,"hidden":false,"merged":[[13,0,14,0],[16,0,18,0]]}
[]
[null,"Erläuterungen zur Kostenaufstellung "]
[]
["1.","Das Formblatt F4 Kostenaufstellung dient als Basis für die Genehmigung der Kosten im beantragten Vorhaben. \nAlle hier angeführten Kosten müssen für die Bewilligende Stelle nachvollziehbar dargestellt werden (siehe Merkblatt Kosten-plausibilisierung), damit diese für eine Genehmigung berücksichtigt werden können. \nHandelt es sich um ein Vorhaben, dass neben Sachaufwand und Personalkosten auch eine Investition enthält und der Förderungswerber setzt auch sein eigenes Personal für die Umsetzung des investiven Anteils ein, so sind in der Kostenaufstellung mindestens zwei Projekte anzulegen (ein Projekt für den Sachaufwand und die damit verbunden Personalkosten und ein Projekt mit den Investitionkosten und den damit verbunden Personalkosten)."]
[]
["2.","Die sich automatisch berechnende Summe in der Zelle Gesamtsumme des Vorhabens – Förderbetrag muss jenem \nBetrag entsprechen, der im Antragsformular angegeben wird. "]
[]
["3.","Einnahmen:\nSofern mit dem Vorhaben Einnahmen erzielt werden, sind diese im jeweiligen Arbeitspaket zu erfassen. \n\nDefinition Einnahmen: \nLaut Art. 61 VO 1303/2013 wird unter Nettoeinnahmen der Geldzufluss verstanden, der unmittelbar von den Nutzern der im Rahmen des\nVorhabens bereitgestellten Waren und Dienstleistungen gezahlt wird.\n\n Beispiele: \n• Eintrittsgelder, die bei geförderten Veranstaltungen kassiert werden\n• Produkte, die durch das Projekt entwickelt und verkauft werden (z.B. Buch, Wanderkarte, etc.)\n• Sponsoringgelder für Werbungen in geförderten Unterlagen (z.B. Wanderführer, Informationsmaterial, etc.) \n• Gebühren, die unmittelbar von den Nutzern für die Benutzung der Infrastruktur bezahlt werden (z.B. Onlinegebühren für\n  EDV)\n\nHinweis:\nDie Summe aus Einnahmen und Förderbetrag darf die Gesamtkosten eines Vorhabens nicht übersteigen. "]
[]
["4.","Gemeinkosten:\nFür die Gemeinkosten wird automatisch ein Pauschalsatz von 15% der tatsächlich verrechneten Personalkosten \nangerechnet. Falls diese Pauschale nicht gewünscht ist, muss dieser Betrag händisch herausgelöscht werden.\n\nDefinition Gemeinkosten: \nUnter Gemeinkosten werden Investitionen für Büroinfrastruktur und Kosten für Sachaufwand im Bereich Büroinfrastruktur wie EDV, Telefon, Miete, Heizung, Wasser, Energie und Reinigung abgedeckt. Eine gesonderte Abrechnung dieser Kosten ist somit nicht zulässig."]
[]
["5.","Medientransparenz: \nHinweis zu den Angaben zum Medientransparenzgesetz (Spalte „Förderbetrag gem. Med. TG §4“):  Angabe von \nFörderungen an Medieninhaber eines periodischen Mediums sowie für Aufträge über Medienkooperationen. \nEine Meldepflicht liegt dann vor, wenn ein Projekt gegen Entgelt insbesondere die inhaltliche Gestaltung, Herstellung oder \nVerbreitung eines periodischen Druckwerks oder die inhaltliche Gestaltung und Ausstrahlung oder Abrufbarkeit eines \nperiodischen elektronischen Mediums betrifft."]
[]
["6.","Plausibilisierungsgrundlagen: \nSonstige Plausibilisierung:\nWird in der List-Box die sonstige Plausibilisierung ausgewählt, sind bei der Beschreibung und Vorlage der Plausibilisierungsunterlagen\nfolgende Möglichkeiten zulässig: Vergleich mit marktüblichen Preisen (Preisspiegel, Kataloge, Internetrecherchen - Auszüge aus dem\nInternet etc.); Vergleich mit bereits  anderen abgerechneten Vorhaben (Antragsnummern anführen); Kostenschätzungen von Zivil-\ntechnikern (beispielsweise Kostenschätzung eines Architekten); Begründung, wenn es sich um eine geistig schöpferische Leistung \nhandelt, oder etwas urheberrechtlich geschützt ist, oder wenn es nur einen qualifizierten Experten oder Anbieter für einen Teil des\nVorhabens gibt."]
[null,"Begründete Kostenschätzung: \nWird die begründete Kostenschätzung ausgewählt (nur für die M 16 und Kleinstprojekt bis € 5.000,00 zulässig), sind die Kostenpositionen\nsehr detailliert darzustellen. Der Bewilligenden Stelle wird jedoch dadurch zur Kenntnis gebracht, dass es zum Zeitpunkt der Einreichung\nder Kostenkalkulation noch keine Unterlagen für die Plausibilisierung (Angebote, unverbindliche Preisauskünfte) gibt und  daher diese\nUnterlagen zur Plausibilisierung erst mit dem Zahlungsantrag eingereicht werden können."]
[]
["7.","Plausibilisierungsunterlagen:\nDie Beschreibungen der Leistungen in der Kostenschätzung müssen eindeutig und verständlich sein und der Bewilligenden Stellen eine\nZuordnung zur Projektbeschreibung bzw. dem Vorhabensdatenblatt ermöglichen. Zu jeder beschriebenen Kostenposition muss die\nPlausibilisierungsgrundlage ausgewählt werden. Auf Basis dieser Grundlage ist in der Spalte Plausibilisierungsunterlagen eine genaue\nAnführung der entsprechenden Unterlagen notwendig."]
[null,"Beispiel:\nIm Formblatt F4 Kostenaufstellung wurde im Arbeitspaket (AP) 3_1 seitens der Förderungswerberin/des Förderungswerbers die\nKostenposition „Druck von Informationsmaterial“ in einer Höhe von 1.250,00 EUR angegeben. Da es sich dabei um Sachkosten handelt,\nlegt die Förderungswerberin/der Förderungswerber dem Antrag zwei Angebote bei:\n• eines der Firma A über die angegebenen 1.250,00 EUR und \n• ein zweites Vergleichsangebot der Firma B über 1.800,00 EUR."]
[null,"Die Angebote wurden mit dem Vermerk „AP 3_1 Angebot Druck von Informationsmaterial“ beziehungsweise „AP 3_1 Vergleichsangebot\n3_1 Angebot Druck von Informationsmaterial“ gekennzeichnet. Damit ist klar ersichtlich, dass es sich hierbei um die Angebote zur \nPlausibilisierung der beantragten Kosten „Druck von Informationsmaterial“ handelt, die Förderungswerberin/der Förderungswerber das\ngünstigere Angebot ausgewählt hat und somit nach den Grundsätzen der Sparsamkeit, Wirtschaftlichkeit und Zweckmäßigkeit gehandelt\nhat. Wenn nicht das günstigere Angebot aufgrund plausibler Hintergründe zur Anwendung kommen kann, muss die Förderungswerberin/\nder Förderungswerber dies in einem Beiblatt entsprechend nachvollziehbar begründen."]

{"sheet":"TEMPLATE Erläuterungen","index":1,"n_rows":5,"n_cols":1,"rows_kept":5,"cut":false,"hidden":true,"merged":[]}
["Dieses Tabellenblatt enthält eine Anleitung. Der dafür erforderliche Text muss noch hineinkopiert werden."]
["Es ist auch möglich mehrere Anleitungsblätter einzufügen. Diese werden als 'normale' Arbeitsblätter eingefügt und bearbeitet sowie alle Zellen als \"gesperrt\" markiert."]
["Damit nach einem 'Alle Eingaben löschen\" nicht auch das Anleitungsblatt gelöscht wird muss es als Anleitung gekennzeichnet werden."]
["Dazu wählt man das Anleitungsblatt als aktuelles Blatt, öffnet dann mit Alt-F11 den Visual Basic Editor, wechselt mit Cntrl-G ind en Direktbereich"]
["und gibt dort den Befehl \"MakeWSheetPersistant\" + <Enter>ein. Danach ist das Blatt als Anleitungsblatt gekennzeichnet und wird bei \"Alle Eingaben löschen\" nicht mehr gelöscht."]

{"sheet":"Übersicht Vorhaben","index":2,"n_rows":18,"n_cols":31,"rows_kept":18,"cut":false,"hidden":false,"merged":[[11,24,12,24],[11,25,12,25],[11,26,12,26],[11,27,12,27],[11,28,12,28],[11,18,12,18],[11,19,12,19],[11,20,12,20],[11,21,12,21],[11,22,12,22],[11,17,12,17],[10,7,11,7],[10,8,11,8],[10,9,11,9],[10,10,11,10],[10,11,11,11],[10,12,11,12],[8,1,9,2],[8,3,8,4],[8,5,9,12],[9,3,9,4],[9,13,10,28],[10,1,10,2],[10,3,11,3],[10,4,11,4],[10,5,11,5],[10,6,11,6],[11,23,12,23],[11,1,11,2],[11,13,12,13],[11,14,12,14],[11,15,12,15],[11,16,12,16],[6,0,6,1],[5,21,5,24],[5,25,5,28],[0,0,0,2],[2,1,2,2],[2,4,2,7],[2,14,2,17],[5,0,5,1],[5,13,5,16],[5,17,5,20],[2,18,2,21],[4,0,4,1],[4,3,4,12],[4,13,4,28]]}
["F4 Formblatt Kostenaufstellung"]
[null,"RL/AMA v153 / Feb. 2018",null,null,null,null,null,null,null,null,"von","bis"]
["Vorhaben",null,null,null,"   Vorsteuerabzugsberechtigung",null,null,null,null,"Vorhabensdauer  ",null,null,null,null,"FinanzDiff. ",null,null,null,{"$f":"H6-K6-L6","v":0}]
[]
["Gesamtübersicht der Projekte",null,null,"Kalkulationen zum Vorhaben",null,null,null,null,null,null,null,null,null,"Zeitplanung der Aktivitäten (optional)"]
["Gesamtsumme des Vorhabens:",null,null,{"$f":"D13","v":0},0,0,0,0,0,null,{"$f":"K13","v":0},{"$f":"L13","v":0},{"$f":"M13*J13","v":0},{"$f":"IF(ISBLANK(IntentStartDate),2018,YEAR(IntentStartDate))","v":2018},null,null,null,{"$f":"N6+1","v":2019},null,null,null,{"$f":"R6+1","v":2020},null,null,null,{"$f":"V6+1","v":2021},null,null,null,"GlobSum"]
[null,null,null,"Personal-kosten","Gemeinkosten (Pauschale)","Sachkosten","Investitions-kosten","Gesamtkosten","Anrechenbare Kosten",null,"Förderbetrag","Einnahmen"," Förderbetrag gem. Med.TG § 4","1 Qu","2 Qu","3 Qu","4 Qu","1 Qu","2 Qu","3 Qu","4 Qu","1 Qu","2 Qu","3 Qu","4 Qu","1 Qu","2 Qu","3 Qu","4 Qu",null,0]
[null,null,null,null,null,null,null,null,null,null,null,null,null,null,null,null,null,null,null,null,null,null,null,null,null,null,null,null,null,"HeaderBottom"]
[{"$f":"\"Projekt \" & AE9","v":"Projekt 1"},null,null,null,null,{"$f":"\"Kostenkalkulation zum Projekt \" & AE9","v":"Kostenkalkulation zum Projekt 1"},null,null,null,null,null,null,null,null,null,null,null,null,null,null,null,null,null,null,null,null,null,null,null,"ProjTop",{"$f":"AE7 +1","v":1}]
[null,null,null,"gilt nur für PK des FW",null,null,null,null,null,null,null,null,null,{"$f":"\"Zeitplanung der Aktivitäten bzw. Leistungen von Projekt \" & AE9","v":"Zeitplanung der Aktivitäten bzw. Leistungen von Projekt 1"},null,null,null,null,null,null,null,null,null,null,null,null,null,null,null,null,{"$f":"AE$9","v":1}]
["Nr. Arbeitspaket",null,null,"Personalkosten","Gemeinkosten (Pauschalsatz)","Sachkosten","Investitions-\nkosten","Gesamtkosten","Anrechenbare Kosten","Fördersatz","Förderbetrag","Einnahmen","davon Kosten gem. Med. TG § 4",null,null,null,null,null,null,null,null,null,null,null,null,null,null,null,null,null,{"$f":"AE$9","v":1}]
[null,"Bezeichnung der Arbeitspakete (AP)",null,null,null,null,null,null,null,null,null,null,null,"1 Qu","2 Qu","3  Qu","4  Qu","1 Qu","2 Qu","3  Qu","4  Qu","1 Qu","2 Qu","3  Qu","4  Qu","1 Qu","2 Qu","3  Qu","4  Qu",null,1]
[null,"Gesamtsumme des Projekts:",null,{"$f":"SUM(D14:D17)","v":0},{"$f":"SUM(E14:E17)","v":0},{"$f":"SUM(F14:F17)","v":0},{"$f":"SUM(G14:G17)","v":0},{"$f":"SUM(D13:G13)","v":0},{"$f":"SUM(I14:I17)","v":0},null,{"$f":"SUM(K14:K17)","v":0},{"$f":"SUM(L14:L17)","v":0},{"$f":"SUM(M14:M17)","v":0},1,4,7,7,1,4,7,7,1,4,7,7,1,4,7,7,"ProjSum",1]
["-- Do Not Delete --","-- Do Not Delete --",null,null,null,null,null,null,null,null,null,null,null,null,null,null,null,null,null,null,null,null,null,null,null,null,null,null,null,"WorkPkg",1]
[null,null,null,null,null,null,null,null,null,null,null,null,null,null,null,null,null,null,null,null,null,null,null,null,null,null,null,null,null,"WorkPkg",{"$f":"AE$9","v":1}]
[null,null,null,null,null,null,null,null,null,null,null,null,null,null,null,null,null,null,null,null,null,null,null,null,null,null,null,null,null,"WorkPkg",{"$f":"AE$9","v":1}]
["-- Do Not Delete --","-- Do Not Delete --",null,null,null,null,null,null,null,null,null,null,null,null,null,null,null,null,null,null,null,null,null,null,null,null,null,null,null,"WorkPkg",1]
[null,null,null,null,null,null,null,null,null,null,null,null,null,null,null,null,null,null,null,null,null,null,null,null,null,null,null,null,null,"ProjBottom",1]

{"sheet":"TEMPLATE Übersicht","index":3,"n_rows":22,"n_cols":31,"rows_kept":22,"cut":false,"hidden":true,"merged":[[11,20,12,20],[11,21,12,21],[10,12,11,12],[10,10,11,10],[11,25,12,25],[11,26,12,26],[11,27,12,27],[11,22,12,22],[11,24,12,24],[11,23,12,23],[5,17,5,20],[2,18,2,21],[4,0,4,1],[4,3,4,12],[4,13,4,28],[2,4,2,7],[2,14,2,17],[5,25,5,28],[5,21,5,24],[5,13,5,16],[11,28,12,28],[8,5,9,12],[11,14,12,14],[11,15,12,15],[9,13,10,28],[11,16,12,16],[10,11,11,11],[11,17,12,17],[11,18,12,18],[11,19,12,19],[10,5,11,5],[11,13,12,13],[10,7,11,7],[10,8,11,8],[10,9,11,9],[10,6,11,6],[0,0,0,2],[2,1,2,2],[8,1,9,2],[10,3,11,3],[10,1,10,2],[11,1,11,2],[9,3,9,4],[8,3,8,4],[6,0,6,1],[5,0,5,1],[10,4,11,4]]}
["F4 Formblatt Kostenaufstellung"]
[null,"RL/AMA v153 / Feb. 2018",null,null,null,null,null,null,null,null,"von","bis"]
["Vorhaben","Bitte den Namen des Vorhabens eintragen",null,null,"   Vorsteuerabzugsberechtigung",null,null,null,null,"Vorhabensdauer  ",null,null,null,null,"FinanzDiff. ",null,null,null,{"$f":"H6-K6-L6","v":0}]
[]
["Gesamtübersicht der Projekte",null,null,"Kalkulationen zum Vorhaben",null,null,null,null,null,null,null,null,null,"Zeitplanung der Aktivitäten (optional)"]
["Gesamtsumme des Vorhabens:",null,null,{"$f":"D13","v":0},0,0,0,0,0,null,{"$f":"K13","v":0},{"$f":"L13","v":0},{"$f":"M13*J13","v":0},2015,null,null,null,{"$f":"N6+1","v":2016},null,null,null,{"$f":"R6+1","v":2017},null,null,null,{"$f":"V6+1","v":2018},null,null,null,"GlobSum"]
[null,null,null,"Personal-kosten","Gemeinkosten (Pauschale)","Sachkosten","Investitions-kosten","Gesamtkosten","Anrechenbare Kosten",null,"Förderbetrag","Einnahmen"," Förderbetrag gem. Med.TG § 4","1 Qu","2 Qu","3 Qu","4 Qu","1 Qu","2 Qu","3 Qu","4 Qu","1 Qu","2 Qu","3 Qu","4 Qu","1 Qu","2 Qu","3 Qu","4 Qu",null,0]
[null,null,null,null,null,null,null,null,null,null,null,null,null,null,null,null,null,null,null,null,null,null,null,null,null,null,null,null,null,"HeaderBottom"]
[{"$f":"\"Projekt \" & AE9","v":"Projekt 1"},"Hier ist die Kurzbezeichnung des Projekts einzutragen",null,null,null,{"$f":"\"Kostenkalkulation zum Projekt \" & AE9","v":"Kostenkalkulation zum Projekt 1"},null,null,null,null,null,null,null,null,null,null,null,null,null,null,null,null,null,null,null,null,null,null,null,"ProjTop",{"$f":"AE7 +1","v":1}]
[null,null,null,"gilt nur für PK des FW",null,null,null,null,null,null,null,null,null,{"$f":"\"Zeitplanung der Aktivitäten bzw. Leistungen von Projekt \" & AE9","v":"Zeitplanung der Aktivitäten bzw. Leistungen von Projekt 1"},null,null,null,null,null,null,null,null,null,null,null,null,null,null,null,null,{"$f":"AE$9","v":1}]
["Nr. Arbeitspaket",null,null,"Personalkosten","Gemeinkosten (Pauschalsatz)","Sachkosten","Investitions-\nkosten","Gesamtkosten","Anrechenbare Kosten","Fördersatz","Förderbetrag","Einnahmen","davon Kosten gem. Med. TG § 4",null,null,null,null,null,null,null,null,null,null,null,null,null,null,null,null,null,{"$f":"AE$9","v":1}]
[null,"Bezeichnung der Arbeitspakete (AP)",null,null,null,null,null,null,null,null,null,null,null,"1 Qu","2 Qu","3  Qu","4  Qu","1 Qu","2 Qu","3  Qu","4  Qu","1 Qu","2 Qu","3  Qu","4  Qu","1 Qu","2 Qu","3  Qu","4  Qu",null,1]
[null,"Gesamtsumme des Projekts:",null,{"$f":"SUM(D14:D21)","v":0},{"$f":"SUM(E14:E21)","v":0},{"$f":"SUM(F14:F21)","v":0},{"$f":"SUM(G14:G21)","v":0},{"$f":"SUM(D13:G13)","v":0},{"$f":"SUM(I14:I21)","v":0},0.8,{"$f":"SUM(K14:K21)","v":0},{"$f":"SUM(L14:L21)","v":0},{"$f":"SUM(M14:M21)","v":0},1,4,7,7,1,4,7,7,1,4,7,7,1,4,7,7,"ProjSum",1]
["-- Do Not Delete --","-- Do Not Delete --",null,null,null,null,null,null,null,null,null,null,null,null,null,null,null,null,null,null,null,null,null,null,null,null,null,null,null,"WorkPkg",1]
[null,null,null,null,null,null,null,null,null,null,null,null,null,null,null,null,null,null,null,null,null,null,null,null,null,null,null,null,null,"WorkPkg",1]
[null,null,null,null,null,null,null,null,null,null,null,null,null,null,null,null,null,null,null,null,null,null,null,null,null,null,null,null,null,"WorkPkg",1]
[null,null,null,null,null,null,null,null,null,null,null,null,null,null,null,null,null,null,null,null,null,null,null,null,null,null,null,null,null,"WorkPkg",{"$f":"AE$9","v":1}]
[null,null,null,null,null,null,null,null,null,null,null,null,null,null,null,null,null,null,null,null,null,null,null,null,null,null,null,null,null,"WorkPkg",{"$f":"AE$9","v":1}]
[null,null,null,null,null,null,null,null,null,null,null,null,null,null,null,null,null,null,null,null,null,null,null,null,null,null,null,null,null,"WorkPkg",{"$f":"AE$9","v":1}]
[null,null,null,null,null,null,null,null,null,null,null,null,null,null,null,null,null,null,null,null,null,null,null,null,null,null,null,null,null,"WorkPkg",{"$f":"AE$9","v":1}]
["-- Do Not Delete --","-- Do Not Delete --",null,null,null,null,null,null,null,null,null,null,null,null,null,null,null,null,null,null,null,null,null,null,null,null,null,null,null,"WorkPkg",1]
[null,null,null,null,null,null,null,null,null,null,null,null,null,null,null,null,null,null,null,null,null,null,null,null,null,null,null,null,null,"ProjBottom",1]

{"sheet":"TEMPLATE Arbeitspaket","index":4,"n_rows":85,"n_cols":17,"rows_kept":85,"cut":false,"hidden":true,"merged":[[19,9,19,10],[20,9,20,10],[14,9,14,10],[21,9,21,10],[27,1,27,4],[51,0,51,5],[42,1,42,4],[39,1,39,4],[15,1,15,2],[14,1,14,2],[24,0,24,5],[23,0,23,5],[32,1,32,4],[38,0,38,6],[37,0,37,6],[35,1,35,4],[36,0,36,4],[34,1,34,4],[33,1,33,4],[22,0,22,4],[25,0,25,6],[56,0,56,5],[54,0,54,5],[58,0,58,5],[59,0,59,5],[10,9,10,10],[12,9,12,10],[13,9,13,10],[22,9,24,11],[15,9,15,10],[16,9,16,10],[17,9,17,10],[18,9,18,10],[55,0,55,5],[47,1,47,4],[57,0,57,5],[48,0,48,4],[68,0,68,5],[71,0,71,5],[69,0,69,5],[40,1,40,4],[41,1,41,4],[43,1,43,4],[63,0,63,6],[45,1,45,4],[46,1,46,4],[60,0,60,5],[49,0,49,6],[50,0,50,5],[44,1,44,4],[61,0,61,5],[52,0,52,6],[53,0,53,6],[66,0,66,5],[64,0,64,5],[65,0,65,5],[84,0,84,6],[73,0,73,6],[74,1,74,6],[80,1,80,6],[81,1,81,6],[75,1,75,6],[79,1,79,6],[78,1,78,6],[83,0,83,6],[77,1,77,6],[76,1,76,6],[70,0,70,5],[67,0,67,5],[31,1,31,4],[10,0,10,6],[12,0,12,6],[11,0,11,6],[26,0,26,6],[13,1,13,2],[17,1,17,2],[19,1,19,2],[18,1,18,2],[30,1,30,4],[28,1,28,4],[29,1,29,4],[21,1,21,2],[20,1,20,2],[4,2,4,6],[7,0,7,1],[7,2,7,6],[16,1,16,2],[0,0,0,11],[8,0,8,1],[8,2,8,6],[6,2,6,6],[1,0,1,6],[2,0,2,1],[2,2,2,6],[6,0,6,1],[4,0,4,1]]}
["Arbeitspaket"]
["Kalkulation der Kosten für einzelne Leistungen im Arbeitspaket",null,null,null,null,null,null,null," Spalte H gibt eine Mindesthöhe für leere Zeilen an, Spalte I ist so breit wie C-G zusammen und ermöglicht optimale Zeilenhöhe für Zeile 6/7/9",null,"RL/AMA v153 / Feb. 2018","Formatmuster zum Kopieren…"]
["Nummer Arbeitspaket",null,null,null,null,null,null,"X",{"$f":"AP_ArbeitspaketIndex","v":0},null,null,"(grün = ist plausibel)"]
[]
["Bezeichnung des Teilvorhabens:",null,null,null,null,null,null,"X",{"$f":"AP_Projektname","v":0},null,null,"(gelb = Nachforderungen sind nötig)"]
[]
["Bezeichnung des Arbeitspakets:",null,null,null,null,null,null,"X",{"$f":"AP_ArbeitspaketName","v":0},null,null,"(rot = unzureichend plausibel)"]
["  "]
["Verantwortliche/r:  ",null,null,null,null,null,null,"X",{"$f":"AP_Verantwortlicher","v":0},null,null,"(orange = Auflage für Zahlungsantrag)"]
[]
["Kosten für die Leistungen",null,null,null,null,null,null,null,null,"Ermittlung der Plausibilität der Kosten"]
[]
["Personalkosten",null,null,null,null,null,null,"−",null,"Plausibilisierungsgrundlage\n(vom Förderwerber zu übermitteln)",null,"Plausibilisierung/Anmerkung durch BST\n(wird von BST ausgefüllt)"]
["Mitarbeiter","Beschreibung der Tätigkeit / Aufschlüsselung der Kostenpositionen",null,"Std.","Std.-Satz","Kosten","nicht anrechenb. Kosten",null,null,"Die kalkulierten Stundenaufwände sind durch detaillierte Leistungsbeschreibung plausibel zu machen",null,"grün = ist plausibel\ngelb = Nachforderungen sind nötig\nrot = unzureichend plausibel\norange = Auflage für Zahlungsantrag"]
["-- Do Not Delete --","-- Do Not Delete --",null,null,null,{"$f":"D15*E15","v":0},null,"PersK",{"$f":"J15","v":0},null,null,null,null,"B=185 + C=95 = 280"]
[null,null,null,null,null,{"$f":"ROUND(D16*E16,2)","v":0},null,"PersK",{"$f":"J16","v":0},null,null,null,null,{"$f":"B16","v":0}]
[null,null,null,null,null,0,null,"PersK",0,null,null,null,null,{"$f":"B17","v":0}]
[null,null,null,null,null,0,null,"PersK",0,null,null,null,null,0]
[null,null,null,null,null,0,null,"PersK",0,null,null,null,null,0]
[null,null,null,null,null,0,null,"PersK",0,null,null,null,null,0]
[null,null,null,null,null,0,null,"PersK",0,null,null,null,null,0]
["-- Do Not Delete --","-- Do Not Delete --",null,null,null,0,null,"PersK",0,null,null,null,null,"-- Do Not Delete --"]
["Summe Personalkosten: ",null,null,null,null,{"$f":"SUM(F15:F22)","v":0},{"$f":"ROUND(SUM(G15:G22),2)","v":0}]
["Pauschalsatz in % (für Gemeinkosten)",null,null,null,null,null,0.15]
["Gemeinkosten in €",null,null,null,null,null,{"$f":"ROUND((F23-G23)*(G24),2)","v":0}]
[]
["Sachkosten",null,null,null,null,null,null,null,null,"Plausibilisierungsgrundlage","Plausibilisierungsunterlagen\n(vom Förderwerber zu übermitteln)","Plausibilisierung durch BST\n(wird von BST ausgefüllt)"]
["Teilleistung","Beschreibung der Tätigkeit / \nAufschlüsselung der Kostenpositionen",null,null,null,"Kosten","nicht anrechenb. Kosten",null,null,"ACHTUNG!\nBegründete Kostenschätzung ist nur anwendbar für M16, Kleinstprojekte und LEADER-Schirmprojekte","Bezeichung und Auflistung,\nsowie ggf. Beschreibung der Beilage"]
["-- Do Not Delete --","-- Do Not Delete --",null,null,null,null,null,"SachK",null,null,null,null,null,null,"B=185 + C=95 + D=65 = 345"]
[null,null,null,null,null,null,null,"SachK",null,null,null,null,null,null,{"$f":"B30","v":0}]
[null,null,null,null,null,null,null,"SachK",null,null,null,null,null,null,{"$f":"B31","v":0}]
[null,null,null,null,null,null,null,"SachK",null,null,null,null,null,null,0]
[null,null,null,null,null,null,null,"SachK",null,null,null,null,null,null,0]
[null,null,null,null,null,null,null,"SachK",null,null,null,null,null,null,0]
[null,null,null,null,null,null,null,"SachK",null,null,null,null,null,null,0]
["-- Do Not Delete --","-- Do Not Delete --",null,null,null,null,null,"SachK",null,null,null,null,null,null,"-- Do Not Delete --"]
["Summe Sachkosten: ",null,null,null,null,{"$f":"ROUND(SUM(F29:F36),2)","v":0},{"$f":"ROUND(SUM(G29:G36),2)","v":0}]
[]
["Investitionskosten",null,null,null,null,null,null,null,null,"Plausibilisierungsgrundlage","Plausibilisierungsunterlagen\n(vom Förderwerber zu übermitteln)","Plausibilisierung durch BST\n(wird von BST ausgefüllt)"]
["Teilleistung","Beschreibung der Tätigkeit / \nAufschlüsselung der Kostenpositionen",null,null,null,"Kosten","nicht anrechenb. Kosten",null,null,"ACHTUNG!\nBegründete Kostenschätzung ist nur anwendbar für M16, Kleinstprojekte und LEADER-Schirmprojekte","Bezeichung und Auflistung,\nsowie ggf. Beschreibung der Beilage"]
["-- Do Not Delete --","-- Do Not Delete --",null,null,null,null,null,"InvestK",null,null,null,null,null,null,"B=185 + C=95 + D=65 = 345"]
[null,null,null,null,null,null,null,"InvestK",null,null,null,null,null,null,{"$f":"B42","v":0}]
[null,null,null,null,null,null,null,"InvestK",null,null,null,null,null,null,{"$f":"B43","v":0}]
[null,null,null,null,null,null,null,"InvestK",null,null,null,null,null,null,0]
[null,null,null,null,null,null,null,"InvestK",null,null,null,null,null,null,0]
[null,null,null,null,null,null,null,"InvestK",null,null,null,null,null,null,0]
[null,null,null,null,null,null,null,"InvestK",null,null,null,null,null,null,0]
["-- Do Not Delete --","-- Do Not Delete --",null,null,null,null,null,"InvestK",null,null,null,null,null,null,"-- Do Not Delete --"]
["Summe Investitionskosten: ",null,null,null,null,{"$f":"ROUND(SUM(F41:F48),2)","v":0},{"$f":"ROUND(SUM(G41:G48),2)","v":0}]
[]
["Anrechenbare Kosten: ",null,null,null,null,null,{"$f":"F23+F37+F49+G25-G23-G37-G49","v":0}]
["Gesamtkosten: ",null,null,null,null,null,{"$f":"F23+F37+F49+G25","v":0}]
[]
["Leistungen gemäß Med. TG § 4 (Beschreibung samt Kostendetaillierung)"]
["-- Do Not Delete --",null,null,null,null,null,null,"MedienTGK",null,null,null,null,null,null,null,"A=190 + B=185 + C=95 + D=65 + E=65 + F=90 = 690"]
[null,null,null,null,null,null,null,"MedienTGK",null,null,null,null,null,null,null,{"$f":"A56","v":0}]
[null,null,null,null,null,null,null,"MedienTGK",null,null,null,null,null,null,null,0]
[null,null,null,null,null,null,null,"MedienTGK",null,null,null,null,null,null,null,0]
[null,null,null,null,null,null,null,"MedienTGK",null,null,null,null,null,null,null,0]
[null,null,null,null,null,null,null,"MedienTGK",null,null,null,null,null,null,null,0]
["-- Do Not Delete --",null,null,null,null,null,null,"MedienTGK",null,null,null,null,null,null,null,"-- Do Not Delete --"]
["Kosten gemäß Medientransparenzgesetz: ",null,null,null,null,null,{"$f":"ROUND(SUM(G55:G61),2)","v":0}]
[]
["Einnahmen"]
["-- Do Not Delete --",null,null,null,null,null,null,"Einnahme",null,null,null,null,null,null,null,"A=190 + B=185 + C=95 + D=65 + E=65 + F=90 = 690"]
["z.B. Sponsoring…",null,null,null,null,null,null,"Einnahme",null,null,null,null,null,null,null,{"$f":"A66","v":"z.B. Sponsoring…"}]
[null,null,null,null,null,null,null,"Einnahme",null,null,null,null,null,null,null,0]
[null,null,null,null,null,null,null,"Einnahme",null,null,null,null,null,null,null,0]
[null,null,null,null,null,null,null,"Einnahme",null,null,null,null,null,null,null,0]
[null,null,null,null,null,null,null,"Einnahme",null,null,null,null,null,null,null,0]
["-- Do Not Delete --",null,null,null,null,null,null,"Einnahme",null,null,null,null,null,null,null,"-- Do Not Delete --"]
["Summe Einnahmen: ",null,null,null,null,null,{"$f":"ROUND(SUM(G65:G71),2)","v":0}]
[]
["Plausibilisierungsgrundlagen"]
["Leistung","Beschreibung",null,null,null,null,null,null,"Liste der möglich Plausibilisierunggrundlagen für Spalte J"]
["-- Do Not Delete --","-- Do Not Delete --",null,null,null,null,null,"Plausib"]
[null,null,null,null,null,null,null,"Plausib","Referenzkosten"]
[null,"!!! Plausibilisierungsgrundlangen immer ausblenden !!!",null,null,null,null,null,"Plausib","Angebote"]
[null,null,null,null,null,null,null,"Plausib","unverbindl. Preisauskünfte"]
[null,null,null,null,null,null,null,"Plausib","sonstige Plausibilisierung"]
[null,null,null,null,null,null,null,"Plausib","begründete Kostenschätzung"]
["-- Do Not Delete --","-- Do Not Delete --",null,null,null,null,null,"Plausib"]
[]
["Ergänzende Informationen zur Teilleistung",null,null,null,null,null,null,null,null,null,null,null,null,null,null,null,"A=190 + B=185 + C=95 + D=65 + E=65 + F=90 + G=125 = 815"]
[null,null,null,null,null,null,null,"ExtraInfo","1\n2\n3\n4\n5",null,null,null,null,null,null,null,{"$f":"A85","v":0}]